bitfinex/quotes_SOLUSD_20240726
["timestamp","ask_amount","ask_price","bid_price","bid_amount"]
[1721964808911,30.6922,176.3,176.25,45.0]
[1721964809501,25.02,176.3,176.22,12.0433]
[1721964809899,25.02,176.3,176.23,45.0]
[1721964810088,5.6725,176.29,176.24,5.6738]
[1721964810276,25.02,176.32,176.25,45.0]
[1721964810873,25.02,176.3,176.22,31.3887]
[1721964811073,25.02,176.3,176.23,45.0]
[1721964811296,5.6727,176.29,176.23,45.0]
[1721964811495,5.6727,176.29,176.23,50.6742]
[1721964811896,25.02,176.3,176.23,50.6742]
[1721964811897,5.6731,176.28,176.23,45.0]
[1721964812494,25.02,176.3,176.24,5.674]
[1721964812703,25.02,176.3,176.25,45.0]
[1721964812905,32.00249673,176.34,176.23,45.0]
[1721964812906,25.02,176.32,176.24,1.13454283]
[1721964813087,5.6721,176.3,176.24,6.80854283]
[1721964813283,5.6721,176.3,176.25,50.6737]
[1721964813491,5.6718,176.31,176.25,50.6737]
[1721964813684,5.6722,176.3,176.25,50.6737]
[1721964814188,5.6724,176.29,176.25,45.0]
[1721964815282,5.6724,176.29,176.24,45.0]
[1721964816087,5.6724,176.29,176.24,50.674]
[1721964816286,12.53,176.28,176.24,63.204]
[1721964816607,12.53,176.29,176.25,12.53]
[1721964818720,18.2025,176.29,176.25,12.53]
[1721964820616,12.53,176.26,176.23,12.53]
[1721964820914,12.53,176.26,176.22,6.3687]
[1721964820915,18.2034,176.26,176.22,18.8987]
[1721964821115,18.2034,176.26,176.22,12.53]
[1721964821301,18.2043,176.24,176.2,12.53]
[1721964821501,18.2044,176.23,176.19,12.53]
[1721964821720,12.53,176.23,176.19,12.53]
[1721964822213,12.53,176.23,176.2,12.53]
[1721964822421,12.53,176.24,176.2,12.53]
[1721964822722,12.53,176.23,176.19,12.53]
[1721964822898,12.53,176.21,176.17,24.8248]
[1721964823787,12.53,176.21,176.18,12.53]
[1721964823991,12.53,176.22,176.18,12.53]
[1721964824804,18.2044,176.23,176.19,12.53]
[1721964825805,30.7314,176.27,176.19,18.2056]
[1721964826093,12.53,176.24,176.2,12.53]
[1721964826492,18.2042,176.24,176.2,12.53]
[1721964827313,12.53,176.24,176.2,12.53]
[1721964828331,18.204,176.24,176.21,12.53]
[1721964829624,18.204,176.24,176.2,12.53]
[1721964829926,18.2044,176.23,176.19,12.53]
[1721964830104,18.2044,176.23,176.2,45.0]
[1721964830300,5.6747,176.22,176.19,12.53]
[1721964830498,18.2047,176.22,176.19,12.53]
[1721964830696,5.6753,176.2,176.18,12.53]
[1721964831000,18.2052,176.21,176.17,12.53]
[1721964831195,5.6745,176.23,176.19,12.53]
[1721964831400,12.53,176.22,176.19,12.53]
[1721964831600,5.674,176.24,176.19,12.53]
[1721964831601,12.53,176.23,176.19,12.53]
[1721964833901,18.2044,176.23,176.19,12.53]
[1721964834315,12.53,176.22,176.18,12.53]
[1721964835023,5.6752,176.21,176.18,12.53]
[1721964835234,18.2047,176.22,176.19,12.53]
[1721964837040,5.6744,176.23,176.19,12.53]
[1721964837202,5.6744,176.23,176.2,12.53]
[1721964839438,12.53,176.24,176.21,12.53]
[1721964839605,18.2043,176.24,176.21,12.53]
[1721964840305,12.53,176.23,176.13,57.30189317]
[1721964840509,12.53,176.22,176.18,12.53]
[1721964840705,12.53,176.21,176.18,12.53]
[1721964841634,12.53,176.22,176.18,12.53]
[1721964842019,5.6751,176.21,176.18,12.53]
[1721964842620,5.6751,176.21,176.19,12.53]
[1721964843327,12.53,176.2,176.13,12.53]
[1721964843528,12.53,176.16,176.12,12.53]
[1721964843720,5.6771,176.15,176.12,12.53]
[1721964843924,18.2066,176.16,176.12,12.53]
[1721964844124,18.2066,176.16,176.13,12.53]
[1721964844513,15.5785,176.2,176.14,12.53]
[1721964844514,5.6763,176.17,176.14,12.53]
[1721964845031,5.6766,176.16,176.13,12.53]
[1721964845617,5.6766,176.16,176.14,12.53]
[1721964846336,5.6771,176.15,176.13,12.53]
[1721964847513,18.2067,176.16,176.13,12.53]
[1721964847919,5.6769,176.15,176.13,12.53]
[1721964848224,12.53,176.16,176.13,12.53]
[1721964848407,12.53,176.16,176.12,12.53]
[1721964849037,5.6769,176.15,176.12,12.53]
[1721964849422,18.2067,176.16,176.12,12.53]
[1721964849729,18.2067,176.16,176.13,12.53]
[1721964850235,15.5785,176.2,176.13,12.53]
[1721964850439,12.53,176.19,176.15,12.53]
[1721964850646,28.1085,176.2,176.16,12.53]
[1721964851209,12.53,176.18,176.15,12.53]
[1721964851458,18.2061,176.18,176.15,12.53]
[1721964851650,5.6765,176.17,176.14,12.53]
[1721964852833,5.6765,176.17,176.11,6.4825631]
[1721964853025,5.6765,176.17,176.14,12.53]
[1721964853226,15.5785,176.2,176.15,12.53]
[1721964853425,12.53,176.19,176.15,12.53]
[1721964853635,33.784,176.2,176.16,12.53]
[1721964854214,33.784,176.2,176.14,5.6772]
[1721964854429,15.5785,176.2,176.16,18.2065]
[1721964854731,12.53,176.21,176.17,12.53]
[1721964854933,12.53,176.24,176.2,12.53]
[1721964855739,12.53,176.23,176.2,12.53]
[1721964855925,18.2041,176.24,176.2,12.53]
[1721964856234,18.2041,176.24,176.19,12.53]
[1721964856235,12.53,176.23,176.19,12.53]
[1721964856441,12.53,176.23,176.19,18.2056]
[1721964856740,12.53,176.23,176.19,12.53]
[1721964857119,18.2044,176.23,176.19,12.53]
[1721964857816,12.53,176.23,176.19,12.53]
[1721964858020,18.2041,176.24,176.2,12.53]
[1721964858228,12.53,176.24,176.2,12.53]
[1721964858626,12.53,176.24,176.21,12.53]
[1721964859134,18.2041,176.24,176.21,12.53]
[1721964859635,5.6745,176.23,176.18,5.6759]
[1721964859817,5.6745,176.23,176.2,12.53]
[1721964860714,18.2041,176.24,176.19,50.6756]
[1721964860915,12.53,176.24,176.2,12.53]
[1721964861235,12.53,176.24,176.21,12.53]
[1721964862117,18.204,176.24,176.21,12.53]
[1721964862738,18.204,176.24,176.2,12.53]
[1721964863648,15.1484,176.3,176.23,12.53]
[1721964863815,12.53,176.28,176.24,12.53]
[1721964864016,12.53,176.28,176.19,46.13476753]
[1721964864017,12.53,176.27,176.23,12.53]
[1721964864258,12.53,176.26,176.22,12.53]
[1721964864416,18.2035,176.26,176.22,12.53]
[1721964864843,18.2035,176.26,176.23,12.53]
[1721964865138,12.53,176.27,176.23,12.53]
[1721964865562,12.53,176.26,176.23,12.53]
[1721964866660,12.53,176.27,176.24,12.53]
[1721964866948,12.53,176.25,176.22,12.53]
[1721964867357,5.6731,176.27,176.22,12.53]
[1721964867524,12.53,176.26,176.22,12.53]
[1721964870058,12.53,176.26,176.21,5.6749]
[1721964870351,12.53,176.26,176.23,12.53]
[1721964871256,18.2034,176.26,176.22,12.53]
[1721964871427,12.53,176.26,176.22,12.53]
[1721964871758,12.53,176.26,176.23,12.53]
[1721964871955,5.6728,176.28,176.23,12.53]
[1721964872253,18.2028,176.28,176.24,12.53]
[1721964873325,15.1484,176.3,176.25,12.53]
[1721964873532,15.1484,176.3,176.26,13.66454061]
[1721964873829,27.6784,176.3,176.26,13.66454061]
[1721964874032,27.6784,176.3,176.26,12.53]
[1721964874451,33.3506,176.3,176.26,12.53]
[1721964875262,15.1484,176.3,176.27,12.53]
[1721964875552,274.7995,176.38,176.29,12.53]
[1721964875738,5.67,176.37,176.34,12.53]
[1721964875924,18.1996,176.38,176.35,12.53]
[1721964876129,18.1996,176.38,176.34,12.53]
[1721964876350,5.6699,176.37,176.34,12.53]
[1721964876731,18.1999,176.37,176.33,12.53]
[1721964876929,12.53,176.37,176.29,5.6722]
[1721964877256,12.53,176.3,176.25,5.6736]
[1721964877433,5.672,176.31,176.09,35.1484]
[1721964877434,12.53,176.26,176.22,12.53]
[1721964877638,15.0035,176.33,176.25,18.2036]
[1721964877639,12.53,176.28,176.25,18.2036]
[1721964877945,12.53,176.29,176.25,12.53]
[1721964878255,12.53,176.3,176.26,12.53]
[1721964878848,12.53,176.3,176.26,18.2033]
[1721964879157,12.53,176.3,176.26,12.53]
[1721964879632,5.6718,176.31,176.26,12.53]
[1721964879960,12.53,176.3,176.26,12.53]
[1721964880341,5.6718,176.31,176.25,5.6736]
[1721964881144,5.6721,176.3,176.25,5.6736]
[1721964881342,5.6721,176.3,176.24,30.734]
[1721964882136,5.6721,176.3,176.25,5.6737]
[1721964882552,45.7349,176.33,176.26,5.6733]
[1721964882865,40.0635,176.33,176.25,25.06]
[1721964883064,5.6715,176.32,176.26,5.6734]
[1721964883354,5.6718,176.31,176.26,5.6734]
[1721964884864,45.7349,176.33,176.27,5.673]
[1721964885046,5.6715,176.32,176.26,5.6733]
[1721964885435,40.0635,176.33,176.28,5.6725]
[1721964885748,15.0035,176.33,176.29,5.6723]
[1721964886471,15.0035,176.33,176.28,5.6727]
[1721964886960,20.6747,176.33,176.28,5.6727]
[1721964887161,15.0035,176.33,176.29,5.6724]
[1721964887342,47.1476,176.37,176.31,5.6716]
[1721964887541,22.0876,176.37,176.31,5.6716]
[1721964888141,5.6705,176.35,176.3,5.6721]
[1721964888369,25.06,176.35,176.26,25.06]
[1721964888673,5.6709,176.34,176.28,5.6724]
[1721964888982,5.6722,176.3,176.24,5.674]
[1721964889174,5.6722,176.3,176.25,5.6736]
[1721964889674,5.673,176.28,176.19,6.507]
[1721964889964,5.6725,176.29,176.23,5.6744]
[1721964890140,30.7322,176.3,176.24,5.674]
[1721964890774,5.6725,176.29,176.24,5.674]
[1721964891757,5.6725,176.29,176.23,25.06]
[1721964891949,5.6721,176.3,176.24,50.674]
[1721964892152,30.7317,176.32,176.27,5.6731]
[1721964892456,5.6717,176.32,176.26,5.6733]
[1721964892655,5.6718,176.31,176.26,5.6733]
[1721964892856,5.6718,176.31,176.25,30.7336]
[1721964894380,25.06,176.32,176.24,45.0]
[1721964894551,5.6726,176.29,176.24,50.6739]
[1721964895257,5.6726,176.29,176.24,5.6739]
[1721964895954,30.7322,176.3,176.24,5.6739]
[1721964897473,5.6722,176.3,176.25,5.6736]
[1721964899459,5.6718,176.31,176.25,5.6736]
[1721964901190,16.1163,176.33,176.24,25.06]
[1721964901376,46.8474,176.33,176.26,25.06]
[1721964901680,16.1163,176.33,176.28,5.6726]
[1721964901988,16.1163,176.33,176.28,5.6727]
[1721964902170,28.6463,176.33,176.29,12.53]
[1721964902362,12.53,176.32,176.28,18.2027]
[1721964902677,12.53,176.32,176.28,12.53]
[1721964902882,12.53,176.32,176.22,50.12]
[1721964902883,12.53,176.31,176.27,12.53]
[1721964903061,12.53,176.31,176.1,16.5523]
[1721964903062,12.53,176.29,176.19,6.507]
[1721964903263,12.53,176.29,176.25,12.53]
[1721964904190,16.1163,176.33,176.28,5.6727]
[1721964904191,46.8475,176.33,176.28,5.6727]
[1721964905585,21.7875,176.33,176.28,5.6727]
[1721964905780,21.7875,176.33,176.27,5.673]
[1721964907364,16.1163,176.33,176.26,25.06]
[1721964907683,5.6702,176.36,176.3,30.7319]
[1721964908476,5.6702,176.36,176.31,5.6717]
[1721964908684,40.8346,176.38,176.32,5.6714]
[1721964908894,15.7746,176.38,176.33,5.6711]
[1721964909258,21.4441,176.38,176.33,5.6711]
[1721964909483,15.7746,176.38,176.33,5.6711]
[1721964909879,15.7746,176.38,176.32,25.06]
[1721964910098,5.6701,176.37,176.32,25.06]
[1721964910460,5.6701,176.37,176.32,30.7314]
[1721964911466,21.4441,176.38,176.32,30.7314]
[1721964912372,21.4441,176.38,176.33,5.6711]
[1721964912571,15.7746,176.38,176.33,5.6711]
[1721964913080,21.4442,176.38,176.33,5.6711]
[1721964913277,5.6699,176.37,176.32,30.7314]
[1721964913463,40.8346,176.38,176.3,25.06]
[1721964913670,5.6705,176.35,176.29,5.6722]
[1721964914086,5.6705,176.35,176.3,5.6721]
[1721964914465,5.6702,176.36,176.3,5.6721]
[1721964914766,15.7746,176.38,176.31,45.0]
[1721964914974,31.2913,176.42,176.34,25.06]
[1721964915291,5.6685,176.42,176.36,5.6699]
[1721964915500,5.6686,176.41,176.36,5.6701]
[1721964915793,5.669,176.4,176.35,45.0]
[1721964915976,5.669,176.4,176.35,50.6704]
[1721964916174,15.9811,176.43,176.36,25.06]
[1721964916385,15.9811,176.43,176.38,25.06]
[1721964916776,31.3334,176.46,176.38,25.06]
[1721964916777,25.06,176.46,176.39,45.0]
[1721964916970,5.667,176.46,176.41,5.6684]
[1721964917296,14.1637,176.51,176.33,6.5554]
[1721964917297,25.06,176.52,176.45,5.6672]
[1721964917501,5.6657,176.51,176.45,5.6672]
[1721964918701,40.8975,176.52,176.48,5.6662]
[1721964918702,15.8375,176.52,176.48,5.6662]
[1721964918887,5.6647,176.53,176.46,25.06]
[1721964919067,5.6654,176.51,176.46,30.7268]
[1721964919582,5.6654,176.51,176.46,25.06]
[1721964920403,5.6654,176.51,176.44,25.06]
[1721964920577,5.6654,176.51,176.45,45.0]
[1721964920975,5.6657,176.5,176.45,50.667]
[1721964921595,5.6654,176.51,176.45,5.667]
[1721964921808,5.666,176.5,176.45,5.6672]
[1721964921975,5.6659,176.5,176.43,5.6677]
[1721964922174,5.6659,176.5,176.45,5.6672]
[1721964922502,5.6659,176.5,176.44,5.6675]
[1721964923276,25.06,176.51,176.45,5.6672]
[1721964923582,5.6653,176.52,176.44,25.06]
[1721964923777,30.7248,176.53,176.47,5.6666]
[1721964924273,5.6644,176.54,176.48,45.0]
[1721964924503,25.06,176.55,176.49,5.6659]
[1721964924708,5.6648,176.53,176.47,5.6665]
[1721964925001,5.6645,176.54,176.48,30.726]
[1721964926609,16.4787,176.56,176.5,25.06]
[1721964926811,16.4787,176.56,176.52,5.6648]
[1721964927108,16.4787,176.56,176.51,50.6653]
[1721964927614,5.6632,176.58,176.52,5.665]
[1721964927791,5.6632,176.58,176.53,45.0]
[1721964928116,30.7229,176.59,176.53,50.6647]
[1721964928313,22.2874,176.6,176.53,45.0]
[1721964928611,16.6249,176.6,176.54,25.06]
[1721964928798,5.6621,176.62,176.55,45.0]
[1721964928994,5.6615,176.63,176.56,25.06]
[1721964929211,41.6849,176.65,176.58,25.06]
[1721964929389,41.6849,176.65,176.57,45.0]
[1721964929390,16.6249,176.65,176.6,25.06]
[1721964930619,16.6249,176.65,176.61,45.0]
[1721964930907,5.6612,176.64,176.61,45.0]
[1721964931110,5.6608,176.66,176.61,45.0]
[1721964931309,30.7203,176.67,176.61,45.0]
[1721964932226,25.06,176.67,176.61,45.0]
[1721964932394,5.6606,176.66,176.61,45.0]
[1721964932712,5.6609,176.65,176.61,45.0]
[1721964932900,5.6606,176.66,176.61,45.0]
[1721964933415,25.06,176.68,176.61,45.0]
[1721964933587,47.6652,176.69,176.61,45.0]
[1721964933785,5.6606,176.66,176.61,45.0]
[1721964938506,5.6612,176.64,176.61,45.0]
[1721964938810,5.6612,176.64,176.58,25.06]
[1721964939119,5.6612,176.64,176.59,45.0]
[1721964939317,5.6615,176.63,176.59,45.0]
[1721964939613,5.6612,176.65,176.59,45.0]
[1721964939915,5.6612,176.64,176.59,45.0]
[1721964940226,25.06,176.66,176.59,45.0]
[1721964940394,5.6616,176.63,176.59,45.0]
[1721964940594,5.6612,176.64,176.59,45.0]
[1721964940920,5.6609,176.65,176.59,45.0]
[1721964942718,25.06,176.66,176.59,45.0]
[1721964942719,30.7206,176.66,176.59,45.0]
[1721964943494,5.6609,176.65,176.59,45.0]
[1721964943911,25.06,176.66,176.56,25.06]
[1721964944094,5.6622,176.61,176.54,40.2627]
[1721964945091,5.6622,176.61,176.54,25.06]
[1721964945702,5.6625,176.6,176.54,25.06]
[1721964945897,5.6628,176.59,176.53,6.5792]
[1721964946405,5.6625,176.6,176.53,6.5792]
[1721964946611,5.6625,176.6,176.54,25.06]
[1721964947831,5.6629,176.59,176.54,25.06]
[1721964948015,5.6631,176.58,176.53,6.5792]
[1721964948335,25.06,176.6,176.5,25.06]
[1721964948513,5.6641,176.55,176.5,25.06]
[1721964948822,25.06,176.56,176.49,6.049]
[1721964949045,5.6644,176.54,176.49,6.049]
[1721964949603,51.0752,176.61,176.49,6.049]
[1721964949604,25.06,176.58,176.49,6.049]
[1721964949829,5.6638,176.56,176.5,5.6656]
[1721964950205,5.6641,176.55,176.5,5.6656]
[1721964950427,5.6641,176.55,176.49,6.049]
[1721964951005,5.6638,176.56,176.5,25.06]
[1721964951202,5.6633,176.58,176.49,7.18191443]
[1721964951427,5.6633,176.58,176.52,25.06]
[1721964951930,5.6635,176.57,176.52,30.725]
[1721964952127,5.6632,176.58,176.53,50.6647]
[1721964952512,16.243,176.61,176.54,25.06]
[1721964952707,5.6634,176.58,176.54,25.06]
[1721964952906,5.6628,176.59,176.54,25.06]
[1721964953115,25.06,176.64,176.56,25.06]
[1721964953313,5.6616,176.63,176.58,25.06]
[1721964953520,5.6619,176.62,176.58,25.06]
[1721964953725,273.0676,176.65,176.56,25.06]
[1721964953726,5.6618,176.63,176.56,25.06]
[1721964953910,5.6619,176.62,176.57,45.0]
[1721964954116,5.6619,176.62,176.58,25.06]
[1721964955827,405.56,176.68,176.6,25.06]
[1721964956131,5.6609,176.65,176.6,25.06]
[1721964956522,5.6609,176.65,176.61,45.0]
[1721964957627,5.6609,176.65,176.6,25.06]
[1721964959618,5.6606,176.66,176.6,25.06]
[1721964959818,5.6606,176.66,176.61,45.0]
[1721964960320,5.6602,176.67,176.61,45.0]
[1721964960637,5.6602,176.67,176.62,25.06]
[1721964961413,16.0376,176.69,176.62,25.06]
[1721964961615,5.66,176.68,176.64,25.06]
[1721964961844,5.6592,176.71,176.66,25.06]
[1721964962011,15.0044,176.73,176.68,25.06]
[1721964962344,6.4624631,176.74,176.68,25.06]
[1721964962520,5.6584,176.73,176.68,25.06]
[1721964962726,6.4624631,176.74,176.68,25.06]
[1721964963229,5.6584,176.73,176.68,25.06]
[1721964964028,0.8043631,176.74,176.66,25.06]
[1721964965117,0.8043631,176.74,176.65,6.375]
[1721964965118,25.06,176.73,176.65,6.375]
[1721964965423,5.6599,176.69,176.65,6.375]
[1721964966141,25.06,176.69,176.62,25.06]
[1721964966331,25.06,176.69,176.6,31.3905]
[1721964966644,5.6603,176.67,176.62,25.06]
[1721964967152,5.6599,176.68,176.62,25.06]
[1721964967819,5.6604,176.67,176.62,25.06]
[1721964968044,5.66,176.68,176.62,25.06]
[1721964968253,5.66,176.68,176.64,25.06]
[1721964969823,25.06,176.69,176.62,25.06]
[1721964970031,25.06,176.69,176.6,25.06]
[1721964970235,25.06,176.69,176.62,25.06]
[1721964970417,5.6606,176.66,176.62,25.06]
[1721964970735,5.6615,176.64,176.62,25.06]
[1721964971044,5.6609,176.65,176.62,25.06]
[1721964971226,5.6606,176.66,176.62,25.06]
[1721964971423,15.1759,176.7,176.62,25.06]
[1721964971620,15.1759,176.7,176.64,25.06]
[1721964971827,29.3247,176.7,176.62,25.06]
[1721964972336,5.6635,176.57,176.51,6.203]
[1721964972532,25.06,176.6,176.52,25.06]
[1721964972931,5.6635,176.57,176.52,25.06]
[1721964973131,25.06,176.6,176.52,25.06]
[1721964973339,5.6635,176.57,176.52,25.06]
[1721964973728,5.6642,176.55,176.52,25.06]
[1721964973951,5.6637,176.56,176.52,25.06]
[1721964974240,5.6634,176.57,176.52,25.06]
[1721964974625,5.6639,176.56,176.52,25.06]
[1721964975331,14.1578,176.59,176.51,25.06]
[1721964975639,5.6641,176.55,176.51,25.06]
[1721964976060,5.6641,176.55,176.5,5.6656]
[1721964976568,5.6641,176.55,176.49,30.7259]
[1721964976728,5.6641,176.55,176.49,25.06]
[1721964977125,5.6646,176.54,176.49,25.06]
[1721964977344,5.6646,176.54,176.48,5.6663]
[1721964977727,5.6646,176.54,176.49,5.6659]
[1721964978138,25.06,176.56,176.47,25.06]
[1721964978437,5.665,176.53,176.47,30.7264]
[1721964979166,5.6648,176.53,176.47,30.7264]
[1721964979543,30.7245,176.54,176.48,5.6663]
[1721964979743,5.6648,176.53,176.48,5.6663]
[1721964980447,30.7244,176.54,176.49,5.6658]
[1721964980657,5.6644,176.54,176.49,5.6658]
[1721964981072,25.06,176.58,176.5,45.0]
[1721964981586,5.6641,176.55,176.5,50.6656]
[1721964982242,25.06,176.56,176.47,25.06]
[1721964982567,25.06,176.56,176.49,5.6659]
[1721964982568,5.6643,176.55,176.49,5.6659]
[1721964982864,5.6647,176.53,176.48,45.0]
[1721964983465,5.6647,176.53,176.48,50.6663]
[1721964983674,5.6647,176.53,176.48,45.0]
[1721964984773,5.6644,176.54,176.48,50.6662]
[1721964986590,14.1565,176.6,176.49,25.06]
[1721964986781,25.06,176.58,176.5,45.0]
[1721964986953,5.664,176.56,176.5,45.0]
[1721964987471,5.6642,176.55,176.5,50.6656]
[1721964988968,25.06,176.56,176.47,25.06]
[1721964989367,5.665,176.53,176.47,30.7264]
[1721964990981,5.665,176.53,176.48,50.6663]
[1721964991156,5.6652,176.52,176.48,45.0]
[1721964991884,41.6883,176.54,176.45,30.727]
[1721964992178,5.6657,176.5,176.45,30.727]
[1721964992379,5.6657,176.5,176.45,5.667]
[1721964993278,16.6283,176.54,176.45,25.06]
[1721964993457,47.353,176.54,176.45,25.06]
[1721964993776,47.353,176.54,176.49,5.6658]
[1721964994680,5.6647,176.53,176.48,5.6663]
[1721964995567,5.6651,176.52,176.46,45.0]
[1721964995778,5.6654,176.51,176.46,50.6667]
[1721964995979,5.6654,176.51,176.46,45.0]
[1721964996182,5.6657,176.5,176.45,30.7272]
[1721964996485,5.6654,176.51,176.46,5.667]
[1721964996862,30.7251,176.52,176.47,5.6665]
[1721964998876,5.6648,176.53,176.48,50.6663]
[1721964999258,47.3528,176.54,176.48,50.6663]
[1721964999780,5.6648,176.53,176.48,50.6663]
[1721965000391,5.6651,176.52,176.48,45.0]
[1721965000862,41.6883,176.54,176.45,25.06]
[1721965001197,5.6653,176.52,176.46,5.6667]
[1721965001487,5.6653,176.52,176.42,6.5485]
[1721965001488,25.06,176.52,176.47,45.0]
[1721965001658,5.6657,176.5,176.47,45.0]
[1721965001863,5.6657,176.5,176.44,5.6675]
[1721965002089,25.06,176.5,176.42,12.2165]
[1721965002387,25.06,176.48,176.39,25.06]
[1721965002571,25.06,176.46,176.38,11.8916]
[1721965002765,5.6676,176.44,176.39,5.6691]
[1721965003384,5.6674,176.45,176.4,5.6688]
[1721965003567,47.1985,176.46,176.41,5.6684]
[1721965004260,22.1385,176.46,176.41,5.6684]
[1721965004574,16.4715,176.46,176.41,5.6684]
[1721965004772,16.4715,176.46,176.42,45.0]
[1721965004990,16.4715,176.46,176.42,50.6682]
[1721965005373,5.6667,176.47,176.42,50.6682]
[1721965005569,25.06,176.5,176.43,5.6678]
[1721965005771,5.6664,176.48,176.43,5.6678]
[1721965006580,5.6664,176.48,176.42,70.06]
[1721965006581,5.666,176.49,176.44,45.0]
[1721965006776,5.666,176.49,176.42,70.06]
[1721965006980,5.6663,176.48,176.43,5.6678]
[1721965007171,5.6663,176.48,176.44,45.0]
[1721965007371,30.7257,176.5,176.44,50.6675]
[1721965007592,5.6661,176.49,176.44,50.6675]
[1721965007777,15.9112,176.51,176.44,70.06]
[1721965007976,21.5768,176.51,176.46,5.6669]
[1721965008165,5.6656,176.51,176.46,5.6669]
[1721965008368,5.6657,176.5,176.45,5.6672]
[1721965008585,5.6657,176.5,176.46,45.0]
[1721965008988,25.06,176.54,176.46,50.6668]
[1721965009185,5.6658,176.5,176.46,45.0]
[1721965009377,5.666,176.49,176.44,30.7276]
[1721965009581,5.666,176.49,176.45,45.0]
[1721965010291,5.6667,176.47,176.45,45.0]
[1721965010595,25.06,176.52,176.45,45.0]
[1721965011795,5.6662,176.49,176.45,45.0]
[1721965011982,25.06,176.52,176.42,25.06]
[1721965012179,5.667,176.46,176.41,5.6683]
[1721965012384,5.6673,176.45,176.4,30.7289]
[1721965012584,5.667,176.46,176.4,30.7289]
[1721965013302,25.06,176.48,176.4,25.06]
[1721965013303,5.6666,176.48,176.4,25.06]
[1721965013466,5.6663,176.48,176.42,5.6679]
[1721965013799,5.6663,176.48,176.42,5.6682]
[1721965014094,25.06,176.48,176.41,5.6685]
[1721965014274,5.6667,176.47,176.41,5.6685]
[1721965014695,5.6671,176.46,176.41,5.6685]
[1721965014905,5.6673,176.45,176.4,5.6688]
[1721965015078,30.727,176.46,176.41,45.0]
[1721965015593,5.6681,176.43,176.36,41.1048]
[1721965015797,25.06,176.44,176.36,41.1048]
[1721965016094,5.6683,176.42,176.36,30.7299]
[1721965016674,25.06,176.4,176.32,40.8472]
[1721965016873,25.06,176.4,176.32,5.6712]
[1721965017180,5.6699,176.37,176.32,5.6712]
[1721965017396,25.06,176.4,176.32,5.6712]
[1721965017397,5.6698,176.38,176.32,5.6712]
[1721965017698,5.6693,176.39,176.3,31.182]
[1721965018198,5.6693,176.39,176.33,5.6711]
[1721965018494,5.6693,176.39,176.33,5.6709]
[1721965018886,5.6696,176.38,176.33,5.6709]
[1721965019701,30.7296,176.38,176.32,5.6714]